bitfinex/quotes_BTCUSD_20241003
["timestamp","ask_amount","ask_price","bid_price","bid_amount"]
[1727963355475,0.02594592,60416.0,60415.0,0.41545643]
[1727963355691,0.3640821,60426.0,60413.0,0.008634]
[1727963355692,0.24993543,60425.0,60413.0,0.003634]
[1727963355944,0.09449895,60424.0,60414.0,0.005]
[1727963356189,0.165521,60415.0,60414.0,0.005]
[1727963356396,0.165524,60414.0,60413.0,0.001634]
[1727963358690,0.166524,60414.0,60413.0,0.001634]
[1727963358930,0.19247381,60414.0,60413.0,0.001634]
[1727963359194,0.41003149,60414.0,60413.0,0.001634]
[1727963359392,0.41903149,60414.0,60413.0,0.002634]
[1727963359632,0.41703149,60414.0,60413.0,0.002634]
[1727963359868,0.29847381,60414.0,60413.0,0.002634]
[1727963360106,0.278524,60414.0,60413.0,0.002634]
[1727963361275,0.278524,60414.0,60413.0,0.001634]
[1727963361276,0.265524,60414.0,60413.0,0.001634]
[1727963361530,0.265524,60414.0,60413.0,0.003634]
[1727963361531,0.278524,60414.0,60413.0,0.003634]
[1727963361744,0.44171071,60414.0,60413.0,0.003634]
[1727963362017,0.42871071,60414.0,60413.0,0.001634]
[1727963362222,0.178524,60414.0,60413.0,0.002634]
[1727963362435,0.172524,60414.0,60413.0,0.002634]
[1727963362930,0.169524,60414.0,60413.0,0.001634]
[1727963363140,0.171524,60414.0,60413.0,0.002634]
[1727963363361,0.03194946,60414.0,60413.0,0.168161]
[1727963363615,0.006,60414.0,60413.0,0.168161]
[1727963363824,0.006,60414.0,60413.0,0.63251188]
[1727963364081,0.165466,60436.0,60417.0,0.002]
[1727963364361,0.24993543,60426.0,60422.0,0.331001]
[1727963364570,0.02594174,60432.0,60422.0,0.331]
[1727963364571,0.330967,60429.0,60422.0,0.331]
[1727963364824,0.35689574,60432.0,60418.0,0.0934]
[1727963364825,0.165504,60422.0,60418.0,0.0934]
[1727963365055,0.165498,60424.0,60420.0,0.165507]
[1727963365286,0.02594174,60432.0,60420.0,0.331015]
[1727963365287,0.165488,60428.0,60420.0,0.331015]
[1727963365563,0.02594174,60432.0,60431.0,0.165477]
[1727963365780,0.24993543,60440.0,60433.0,0.330942]
[1727963366035,0.69128631,60447.0,60432.0,0.081]
[1727963366036,0.24993543,60439.0,60432.0,0.081]
[1727963366282,0.24993543,60447.0,60432.0,0.081]
[1727963366507,0.24993543,60447.0,60423.0,0.33093543]
[1727963366508,0.5475429,60446.0,60423.0,0.33093543]
[1727963366734,0.33091,60440.0,60433.0,0.24993543]
[1727963366980,0.745818,60448.0,60431.0,0.165476]
[1727963366981,0.165467,60435.0,60431.0,0.165476]
[1727963367227,0.1,60447.0,60432.0,0.24993543]
[1727963367441,0.165459,60438.0,60432.0,0.330947]
[1727963367654,0.165459,60438.0,60424.0,0.023]
[1727963367655,0.330918,60438.0,60424.0,0.023]
[1727963367895,0.165462,60437.0,60433.0,0.41540643]
[1727963368134,0.165462,60437.0,60433.0,0.165471]
[1727963368372,0.330918,60438.0,60425.0,0.330984]
[1727963368373,0.330946,60433.0,60425.0,0.330984]
[1727963368589,0.000817,60445.0,60421.0,0.331009]
[1727963368590,0.330955,60432.0,60421.0,0.331009]
[1727963368839,0.165472,60433.0,60432.0,0.005]
[1727963369074,0.165472,60433.0,60418.0,0.424424]
[1727963369075,0.44135088,60433.0,60419.0,0.24993543]
[1727963369282,0.165483,60429.0,60428.0,0.24993543]
[1727963369536,0.49807975,60433.0,60419.0,0.24993543]
[1727963369537,0.05672887,60433.0,60419.0,0.24993543]
[1727963369778,0.05672887,60433.0,60418.0,0.0934]
[1727963369779,0.1,60432.0,60425.0,0.24993543]
[1727963369988,0.1,60432.0,60416.0,0.331037]
[1727963369989,0.330979,60427.0,60416.0,0.331037]
[1727963370235,0.165498,60424.0,60420.0,0.165506]
[1727963370488,0.165494,60425.0,60417.0,0.331029]
[1727963370754,0.165494,60425.0,60413.0,0.001634]
[1727963370755,0.049648,60425.0,60413.0,0.001634]
[1727963371022,0.331022,60419.0,60413.0,0.001634]
[1727963371242,0.331029,60418.0,60413.0,0.001634]
[1727963371454,0.60687488,60414.0,60413.0,0.001634]
[1727963371680,0.70687488,60414.0,60413.0,0.001634]
[1727963371933,0.86268288,60414.0,60413.0,0.001634]
[1727963372186,0.86268288,60414.0,60392.0,0.25075343]
[1727963372187,0.75575688,60414.0,60392.0,0.25075343]
[1727963372402,0.60691088,60401.0,60392.0,0.25075343]
[1727963373097,0.79288952,60401.0,60400.0,0.1]
[1727963373532,0.19151545,60401.0,60400.0,0.1]
[1727963374293,0.19351545,60401.0,60400.0,0.1]
[1727963374529,0.29351545,60401.0,60400.0,0.101]
[1727963374757,0.29151545,60401.0,60400.0,0.1]
[1727963374974,0.45470216,60401.0,60400.0,0.1]
[1727963375217,0.43374671,60401.0,60400.0,0.1]
[1727963375473,0.267582,60393.0,60392.0,0.000818]
[1727963375683,0.96466188,60393.0,60392.0,0.000818]
[1727963375976,0.96466188,60393.0,60380.0,0.000818]
[1727963375977,0.002,60385.0,60380.0,0.000818]
[1727963376236,0.265615,60381.0,60380.0,0.000818]
[1727963376484,0.265615,60381.0,60371.0,0.25157143]
[1727963376485,0.265634,60374.0,60371.0,0.25157143]
[1727963376735,0.265634,60374.0,60365.0,0.00163]
[1727963376736,0.73200688,60366.0,60365.0,0.00163]
[1727963376948,1.47700688,60366.0,60365.0,0.00163]
[1727963377170,1.45400688,60366.0,60365.0,0.00163]
[1727963377397,1.45400688,60366.0,60355.0,0.24993543]
[1727963377398,0.267667,60362.0,60355.0,0.24993543]
[1727963377612,0.45385371,60362.0,60355.0,0.24993543]
[1727963378295,0.43085371,60362.0,60355.0,0.24993543]
[1727963378513,0.50324361,60362.0,60355.0,0.24993543]
[1727963378737,0.45682956,60362.0,60355.0,0.24993543]
[1727963378988,0.29164285,60362.0,60355.0,0.24993543]
[1727963379243,0.267667,60362.0,60355.0,0.24993543]
[1727963379537,0.265667,60362.0,60355.0,0.41561943]
[1727963379742,0.165667,60362.0,60355.0,0.24993543]
[1727963379973,0.165667,60362.0,60351.0,0.0952]
[1727963380189,0.165667,60362.0,60344.0,0.24993543]
[1727963380447,0.170667,60362.0,60361.0,0.001018]
[1727963380684,0.34185371,60362.0,60361.0,0.002018]
[1727963380884,0.43685371,60362.0,60361.0,0.002018]
[1727963381146,0.43985371,60362.0,60361.0,0.002018]
[1727963381377,0.43385371,60362.0,60361.0,0.001018]
[1727963381674,0.265667,60362.0,60361.0,0.001018]
[1727963381920,0.192667,60362.0,60361.0,0.001018]
[1727963382152,0.178667,60362.0,60361.0,0.001018]
[1727963382397,0.189667,60362.0,60361.0,0.001018]
[1727963382619,0.024,60362.0,60361.0,0.001018]
[1727963383068,0.011,60362.0,60361.0,0.001018]
[1727963383539,0.017,60362.0,60361.0,0.001018]
[1727963383798,0.006,60362.0,60361.0,0.001018]
[1727963384000,0.005,60362.0,60361.0,0.166686]
[1727963384283,0.001,60362.0,60361.0,0.166686]
[1727963384526,0.002,60362.0,60361.0,0.171686]
[1727963384742,0.002,60362.0,60361.0,0.249186]
[1727963385183,0.27590299,60376.0,60361.0,0.249186]
[1727963385184,0.27590299,60376.0,60370.0,0.331287]
[1727963385411,0.27590299,60376.0,60362.0,0.023]
[1727963385623,0.24993543,60394.0,60375.0,0.0901]
[1727963385624,0.331206,60386.0,60375.0,0.0901]
[1727963385912,0.24993543,60394.0,60386.0,0.165601]
[1727963386149,0.24993543,60394.0,60386.0,0.244301]
[1727963386386,0.24993543,60394.0,60393.0,0.165582]
[1727963386848,0.331107,60404.0,60386.0,0.409901]
[1727963386849,0.165546,60407.0,60397.0,0.496711]
[1727963387123,0.24993543,60404.0,60401.0,0.165558]
[1727963387375,0.001636,60414.0,60404.0,0.3311]
[1727963387632,0.001636,60414.0,60413.0,0.165527]
[1727963387849,0.001636,60414.0,60406.0,0.331091]
[1727963388095,0.001636,60414.0,60401.0,0.44135088]
[1727963388096,0.001636,60414.0,60413.0,0.263927]
[1727963388317,0.001636,60414.0,60413.0,0.0984]
[1727963388573,0.001636,60414.0,60413.0,0.263927]
[1727963388814,0.001636,60414.0,60413.0,0.338927]
[1727963390016,0.001636,60414.0,60413.0,0.1734]
[1727963390499,0.002636,60414.0,60413.0,0.1864]
[1727963390731,0.002636,60414.0,60413.0,0.1114]
[1727963390732,0.218978,60414.0,60413.0,0.1114]
[1727963390945,0.217978,60414.0,60413.0,0.0984]
[1727963391176,0.218978,60414.0,60413.0,0.0984]
[1727963391453,0.218978,60414.0,60402.0,0.0752]
[1727963391454,0.051454,60414.0,60402.0,0.0752]
[1727963391660,0.16816,60414.0,60409.0,0.165537]
[1727963391881,0.16916,60414.0,60413.0,0.013]
[1727963392864,0.16816,60414.0,60413.0,0.013]
[1727963393072,0.17016,60414.0,60413.0,0.013]
[1727963393287,0.004636,60414.0,60413.0,0.178527]
[1727963393506,0.003636,60414.0,60413.0,0.165527]
[1727963393779,0.001636,60414.0,60413.0,0.165527]
[1727963393990,0.001636,60414.0,60413.0,0.271627]
[1727963393991,0.003636,60414.0,60413.0,0.271627]
[1727963394218,0.002636,60414.0,60413.0,0.262627]
[1727963394455,0.02594396,60428.0,60413.0,0.262627]
[1727963394456,0.165495,60425.0,60416.0,0.331033]
[1727963394904,0.165495,60425.0,60418.0,0.165513]
[1727963394905,0.24993543,60420.0,60418.0,0.165513]
[1727963395130,0.1655,60423.0,60416.0,0.331033]
[1727963395355,0.02594396,60428.0,60417.0,0.24993543]
[1727963395604,0.24993543,60437.0,60418.0,0.0986]
[1727963395605,0.165466,60436.0,60418.0,0.0986]
[1727963395827,0.24993543,60429.0,60418.0,0.429622]
[1727963396098,0.35592454,60436.0,60418.0,0.0756]
[1727963396099,0.02499354,60436.0,60418.0,0.0756]
[1727963396348,0.330953,60432.0,60421.0,0.24993543]
[1727963396604,0.24993543,60436.0,60418.0,0.0756]
[1727963396605,0.58082743,60443.0,60423.0,0.330998]
[1727963396844,0.001,60425.0,60424.0,0.165497]
[1727963397076,0.330892,60443.0,60424.0,0.00293883]
[1727963397329,0.330892,60443.0,60436.0,0.165462]
[1727963397330,0.41538943,60440.0,60436.0,0.165462]
[1727963397554,0.41538943,60440.0,60430.0,0.330955]
[1727963397555,0.58084743,60440.0,60430.0,0.330955]
[1727963397800,0.58084743,60440.0,60425.0,0.0943]
[1727963397801,0.24993543,60440.0,60425.0,0.0943]
[1727963398050,0.165477,60431.0,60430.0,0.24993543]
[1727963398281,0.337892,60443.0,60430.0,0.24993543]
[1727963398543,0.337892,60443.0,60429.0,0.330964]
[1727963398544,0.24993543,60440.0,60429.0,0.330964]
[1727963398806,0.007,60443.0,60425.0,0.0943]
[1727963398807,0.330942,60434.0,60425.0,0.0943]
[1727963399067,0.4672898,60438.0,60425.0,0.0943]
[1727963399322,0.04672898,60437.0,60425.0,0.0943]
[1727963399558,0.165476,60432.0,60428.0,0.165484]
[1727963399811,0.165476,60432.0,60427.0,0.330976]
[1727963399812,0.165475,60432.0,60430.0,0.004]
[1727963400257,0.331907,60440.0,60425.0,0.0943]
[1727963400258,0.330939,60435.0,60425.0,0.0943]
[1727963400481,0.165485,60429.0,60425.0,0.259793]
[1727963400711,0.165491,60426.0,60425.0,0.0943]
[1727963401627,0.60684188,60426.0,60425.0,0.0943]
[1727963402059,0.70684188,60426.0,60425.0,0.0943]
[1727963402957,0.70784188,60426.0,60425.0,0.0983]
[1727963403175,0.70784188,60426.0,60425.0,0.1083]
[1727963403398,0.165491,60426.0,60425.0,0.0943]
[1727963403647,0.165491,60426.0,60425.0,0.0953]
[1727963403888,0.2893291,60426.0,60425.0,0.0953]
[1727963404129,0.83067998,60426.0,60425.0,0.0953]
[1727963404348,0.82567998,60426.0,60425.0,0.0953]
[1727963404602,0.82267998,60426.0,60425.0,0.0943]
[1727963404826,0.82367998,60426.0,60425.0,0.0953]
[1727963405271,0.70784188,60426.0,60425.0,0.0953]
[1727963405520,0.001,60426.0,60425.0,0.0953]
[1727963405741,0.001,60426.0,60425.0,0.260794]
[1727963405969,0.002636,60426.0,60425.0,0.260794]
[1727963406208,0.001636,60426.0,60425.0,0.259794]
[1727963406435,0.009636,60426.0,60425.0,0.260794]
[1727963406669,0.009636,60426.0,60425.0,0.0943]
[1727963406670,0.175127,60426.0,60425.0,0.0943]
[1727963406883,0.2518345,60426.0,60425.0,0.0943]
[1727963407107,0.2518345,60426.0,60425.0,0.1083]
[1727963407108,0.3518345,60426.0,60425.0,0.1083]
[1727963407347,0.3518345,60426.0,60425.0,0.0983]
[1727963407600,0.3538345,60426.0,60425.0,0.0983]
[1727963407831,0.3528345,60426.0,60425.0,0.07401331]
[1727963408050,0.3518345,60426.0,60425.0,0.07501331]
[1727963409007,0.268127,60426.0,60425.0,0.07501331]
[1727963409447,0.268127,60426.0,60425.0,0.07101331]
[1727963409670,0.274127,60426.0,60425.0,0.07101331]
[1727963410172,0.275127,60426.0,60425.0,0.07201331]
[1727963410403,0.167127,60426.0,60425.0,0.07101331]
[1727963410625,0.002636,60426.0,60425.0,0.07101331]
[1727963410878,0.002636,60426.0,60425.0,0.07201331]
[1727963411136,0.001636,60426.0,60425.0,0.07101331]
[1727963411411,0.008636,60426.0,60425.0,0.23650731]
[1727963411616,0.008636,60426.0,60425.0,0.25950731]
[1727963412103,0.008636,60426.0,60425.0,0.52269402]
[1727963412362,0.008636,60426.0,60425.0,0.52969402]
[1727963412610,0.001636,60426.0,60425.0,0.45968071]
[1727963412872,0.001636,60426.0,60425.0,0.45868071]
[1727963413116,0.001636,60426.0,60425.0,0.304494]
[1727963413368,0.001636,60426.0,60405.0,0.24993543]
[1727963413612,0.001636,60426.0,60419.0,0.24993543]
[1727963413863,0.001636,60426.0,60405.0,0.24993543]
[1727963413864,0.499111,60426.0,60425.0,0.019]
[1727963414085,0.499111,60426.0,60425.0,0.005]
[1727963414335,0.499111,60426.0,60414.0,0.25075343]
[1727963414336,0.02757844,60426.0,60414.0,0.25075343]
[1727963414567,0.62505544,60426.0,60425.0,0.011]
[1727963414837,1.06640632,60426.0,60425.0,0.011]
[1727963415854,1.03946388,60426.0,60425.0,0.011]
[1727963416080,0.165521,60415.0,60414.0,0.000818]
[1727963416318,0.68962898,60415.0,60414.0,0.000818]
[1727963417002,0.78962898,60415.0,60414.0,0.000818]
[1727963417484,0.97657198,60415.0,60414.0,0.000818]
[1727963417811,0.265573,60396.0,60395.0,0.24993543]
[1727963418305,0.265573,60396.0,60374.0,0.331265]
[1727963418306,0.165604,60385.0,60374.0,0.331265]
[1727963418539,0.165604,60385.0,60381.0,0.165614]
[1727963418774,0.1596716,60396.0,60374.0,0.331265]
[1727963419009,0.165617,60381.0,60374.0,0.331267]
[1727963419244,0.44135088,60393.0,60375.0,0.16563]
[1727963419490,0.24993543,60390.0,60374.0,0.331267]
[1727963419700,0.44135088,60393.0,60378.0,0.24993543]
[1727963419701,0.331215,60384.0,60378.0,0.24993543]
[1727963419921,0.1596716,60396.0,60386.0,0.41553443]
[1727963419922,0.165589,60391.0,60386.0,0.41553443]
[1727963420172,0.165589,60391.0,60378.0,0.58117643]
[1727963420173,0.003,60396.0,60395.0,0.165576]
[1727963420393,0.24993543,60402.0,60389.0,0.1]
[1727963421043,0.331123,60401.0,60390.0,0.24993543]
[1727963421264,0.44135088,60414.0,60398.0,0.24993543]
[1727963421505,0.001,60402.0,60401.0,0.165559]
[1727963421723,0.001,60402.0,60401.0,0.16556]
[1727963421937,0.001,60402.0,60399.0,0.331127]
[1727963422166,0.001,60402.0,60401.0,0.16556]
[1727963422623,0.001,60402.0,60395.0,0.331153]
[1727963422842,0.0524108,60413.0,60398.0,0.24993543]
[1727963423090,0.24993543,60410.0,60393.0,0.123]
[1727963423303,0.331055,60413.0,60404.0,0.331101]
[1727963423535,0.165555,60403.0,60401.0,0.004]
[1727963423766,0.165555,60403.0,60402.0,0.24993543]
[1727963423977,0.331055,60413.0,60401.0,0.33112]
[1727963423978,0.165537,60410.0,60401.0,0.33112]
[1727963424207,0.02595079,60406.0,60405.0,0.165549]
[1727963424662,0.24993543,60424.0,60414.0,0.165523]
[1727963424663,0.165511,60419.0,60414.0,0.165523]
[1727963424885,0.24993543,60424.0,60414.0,0.165523]
[1727963424886,0.02594834,60415.0,60414.0,0.165524]
[1727963425109,0.001636,60426.0,60425.0,0.165494]
[1727963425767,0.001636,60426.0,60425.0,0.188494]
[1727963425992,0.001636,60426.0,60425.0,0.165494]
[1727963426484,0.168127,60426.0,60425.0,0.014]
[1727963426715,0.1849397,60426.0,60425.0,0.014]
[1727963427395,0.1849397,60426.0,60425.0,0.023]
[1727963427396,0.62729058,60426.0,60425.0,0.023]
[1727963427605,0.72629058,60426.0,60425.0,0.009]
[1727963427824,0.16553,60412.0,60411.0,0.24993543]
[1727963428510,0.16553,60412.0,60407.0,0.165541]
[1727963428726,0.016553,60411.0,60405.0,0.24993543]
[1727963429158,0.1224487,60426.0,60409.0,0.331071]
[1727963429159,0.1,60419.0,60409.0,0.331071]
[1727963429401,0.1,60419.0,60398.0,0.023]
[1727963429613,0.496542,60418.0,60413.0,0.165527]
[1727963429820,0.496542,60418.0,60402.0,0.331114]
[1727963429821,0.331069,60411.0,60402.0,0.331114]
[1727963430064,0.331069,60411.0,60398.0,0.331132]
[1727963430065,0.165546,60406.0,60405.0,0.24993543]
[1727963430272,0.331077,60409.0,60405.0,0.25593543]
[1727963430493,0.331077,60409.0,60404.0,0.165551]
[1727963430494,0.165541,60408.0,60404.0,0.165551]
[1727963430783,0.165554,60403.0,60399.0,0.165565]
[1727963431016,0.44135088,60416.0,60401.0,0.16556]
[1727963431017,0.0165554,60402.0,60401.0,0.16556]
[1727963431244,0.165542,60408.0,60403.0,0.165553]
[1727963431467,0.165546,60407.0,60405.0,0.005]
[1727963431687,0.331082,60408.0,60405.0,0.005]
[1727963432139,0.165546,60406.0,60405.0,0.005]
[1727963432373,0.2484175,60406.0,60405.0,0.013]
[1727963432593,0.0828715,60406.0,60405.0,0.005]
[1727963432823,0.1914907,60408.0,60405.0,0.005]
[1727963433043,0.0269497,60408.0,60405.0,0.179549]
[1727963433330,0.165546,60406.0,60405.0,0.005]
[1727963433553,0.165548,60406.0,60405.0,0.007]
[1727963433742,0.166548,60406.0,60405.0,0.007]
[1727963433987,0.165548,60406.0,60402.0,0.165557]
[1727963434214,0.0259497,60408.0,60405.0,0.58103143]
[1727963434433,0.0259497,60408.0,60399.0,0.331128]
[1727963434663,0.001,60406.0,60405.0,0.501642]
[1727963435107,0.0259497,60408.0,60406.0,0.165544]
[1727963435326,0.0269497,60408.0,60406.0,0.165544]
[1727963435584,0.0269497,60408.0,60390.0,0.24993543]
[1727963435875,0.165558,60402.0,60400.0,0.24993543]
[1727963436093,0.001,60406.0,60405.0,0.165549]
[1727963436328,0.001,60406.0,60405.0,0.60689988]
[1727963436551,0.001,60406.0,60405.0,0.72989988]
[1727963436770,0.001,60406.0,60405.0,0.73489988]
[1727963437019,0.001,60408.0,60405.0,0.73489988]
[1727963437020,0.001,60408.0,60405.0,0.56935088]
[1727963437261,0.001636,60417.0,60416.0,0.73486988]
[1727963437731,0.001636,60417.0,60416.0,0.72986988]
[1727963437957,0.001636,60417.0,60416.0,0.293519]
[1727963438416,0.001636,60417.0,60416.0,0.288519]
[1727963438671,0.001636,60417.0,60416.0,0.293519]
[1727963439130,0.002636,60417.0,60416.0,0.299519]
[1727963439348,0.002636,60417.0,60416.0,0.190519]
[1727963439584,0.002636,60417.0,60416.0,0.176519]
[1727963439806,0.002636,60417.0,60416.0,0.011]
[1727963440031,0.168152,60417.0,60416.0,0.025]
[1727963440250,0.168152,60417.0,60416.0,0.011]
[1727963440508,0.32840749,60417.0,60416.0,0.011]
[1727963440746,0.32840749,60417.0,60406.0,0.24993543]
[1727963440747,0.165543,60407.0,60406.0,0.24993543]
[1727963441238,0.3311,60405.0,60397.0,0.33114]
[1727963441239,0.44135088,60413.0,60397.0,0.33114]
[1727963441240,0.331077,60409.0,60397.0,0.33114]
[1727963441497,0.331083,60408.0,60400.0,0.331125]
[1727963441748,0.16555,60405.0,60401.0,0.16556]
[1727963442257,0.60689388,60407.0,60406.0,0.005]
[1727963442517,0.64000218,60407.0,60406.0,0.005]
[1727963442742,0.165573,60396.0,60390.0,0.24993543]
[1727963442974,0.60692388,60396.0,60390.0,0.24993543]
[1727963443440,0.60692388,60396.0,60385.0,0.24993543]
[1727963444100,0.63288152,60396.0,60385.0,0.24993543]
[1727963444318,0.76239757,60396.0,60385.0,0.24993543]
[1727963444831,0.76239757,60396.0,60395.0,0.002818]
[1727963445076,0.86239757,60396.0,60395.0,0.002818]
[1727963445301,0.86239757,60396.0,60379.0,0.24993543]
[1727963445302,0.70696788,60380.0,60379.0,0.24993543]
[1727963445528,0.81078577,60380.0,60379.0,0.24993543]
[1727963446005,0.81078577,60380.0,60369.0,0.24993543]
[1727963446006,0.165645,60370.0,60369.0,0.24993543]
[1727963446245,0.265645,60370.0,60369.0,0.24993543]
[1727963446470,0.165645,60370.0,60369.0,0.24993543]
[1727963446691,0.33126,60376.0,60362.0,0.58208343]
[1727963446902,0.20381789,60380.0,60364.0,0.331322]
[1727963446903,0.05350779,60375.0,60364.0,0.331322]
[1727963447124,0.05350779,60375.0,60366.0,0.165654]
[1727963447125,0.165644,60371.0,60366.0,0.165654]
[1727963447399,0.165644,60371.0,60368.0,0.0766]
[1727963447632,0.05350779,60375.0,60368.0,0.0766]
[1727963447633,0.331278,60373.0,60368.0,0.0766]
[1727963447876,0.165647,60369.0,60368.0,0.0766]
[1727963448114,0.331282,60372.0,60368.0,0.0766]
[1727963448381,0.165641,60372.0,60368.0,0.0766]
[1727963448680,0.165647,60369.0,60368.0,0.0766]
[1727963448902,0.165647,60369.0,60362.0,0.000818]
[1727963448903,0.165664,60363.0,60362.0,0.000818]
[1727963449384,0.08866818,60372.0,60362.0,0.000818]
[1727963449385,0.08966818,60372.0,60363.0,0.165662]
[1727963449621,0.77259188,60379.0,60362.0,0.000818]
[1727963449622,0.33126,60376.0,60362.0,0.000818]
[1727963449835,0.165653,60367.0,60362.0,0.000818]
[1727963450072,0.331259,60376.0,60369.0,0.165646]
[1727963450323,0.10381789,60380.0,60362.0,0.000818]
[1727963450324,0.10381789,60380.0,60367.0,0.496956]
[1727963450551,0.24993543,60374.0,60362.0,0.000818]
[1727963450776,0.08951042,60379.0,60362.0,0.000818]
[1727963450777,0.44135088,60376.0,60362.0,0.000818]
[1727963451035,0.08951042,60379.0,60362.0,0.000818]
[1727963451036,0.331303,60368.0,60362.0,0.000818]
[1727963451318,0.24993543,60381.0,60362.0,0.000818]
[1727963451319,0.16566,60365.0,60362.0,0.000818]
[1727963451547,0.44135088,60376.0,60362.0,0.000818]
[1727963451548,0.165664,60363.0,60362.0,0.000818]
[1727963452010,0.331306,60367.0,60362.0,0.000818]
[1727963452238,0.331306,60367.0,60362.0,0.004818]
[1727963452471,0.331308,60367.0,60362.0,0.001818]
[1727963452703,0.2319148,60367.0,60362.0,0.001818]
[1727963452928,0.496932,60371.0,60362.0,0.011818]
[1727963453148,0.24993543,60374.0,60362.0,0.001818]
[1727963453149,0.02596798,60366.0,60362.0,0.001818]
[1727963453379,0.165664,60363.0,60362.0,0.001818]
[1727963453616,0.2510907,60363.0,60362.0,0.005818]
[1727963454101,0.02596798,60366.0,60362.0,0.005818]
[1727963454353,0.001,60363.0,60362.0,0.014818]
[1727963454799,0.166664,60363.0,60362.0,0.009818]
[1727963455054,0.165664,60363.0,60362.0,0.000818]
[1727963455273,0.165664,60363.0,60362.0,0.001818]
[1727963455493,0.02596798,60366.0,60362.0,0.001818]
[1727963455494,0.02596798,60366.0,60365.0,0.165658]
[1727963455726,0.02596798,60366.0,60364.0,0.16566]
[1727963455961,0.001,60366.0,60362.0,0.182484]
[1727963456175,0.001,60366.0,60365.0,0.165658]
[1727963456966,0.001,60366.0,60365.0,0.006]
[1727963456967,0.166656,60366.0,60365.0,0.006]
[1727963457181,0.165654,60367.0,60365.0,0.006]
[1727963457392,0.165656,60366.0,60365.0,0.006]
[1727963457605,0.166656,60366.0,60365.0,0.012]
[1727963457834,0.001,60366.0,60365.0,0.177658]
[1727963458076,0.1,60386.0,60363.0,0.331328]
[1727963458077,0.1,60380.0,60364.0,0.331321]
[1727963458312,0.1,60380.0,60362.0,0.000818]
[1727963458313,0.165629,60376.0,60372.0,0.165638]
[1727963458758,0.02499354,60380.0,60373.0,0.33127]
[1727963459012,0.24993543,60374.0,60371.0,0.094]
[1727963459238,0.001,60366.0,60365.0,0.022]
[1727963459451,0.001,60366.0,60365.0,0.009]
[1727963460156,0.166656,60366.0,60365.0,0.009]
[1727963460400,0.166656,60366.0,60362.0,0.166484]
[1727963460401,0.165656,60366.0,60362.0,0.000818]
[1727963460638,0.69128631,60376.0,60362.0,0.000818]
[1727963460639,0.1,60375.0,60362.0,0.000818]
[1727963460866,0.165664,60363.0,60362.0,0.000818]
[1727963461134,0.1822304,60363.0,60362.0,0.000818]
[1727963461382,0.62358128,60363.0,60362.0,0.000818]
[1727963461650,0.62358128,60363.0,60362.0,0.001818]
[1727963461651,0.72558128,60363.0,60362.0,0.001818]
[1727963461873,0.80598128,60363.0,60362.0,0.001818]
[1727963462097,0.80598128,60363.0,60362.0,0.000818]
[1727963462318,0.267667,60362.0,60361.0,0.001018]
[1727963462562,0.76172271,60362.0,60361.0,0.001018]
[1727963462812,0.43085371,60362.0,60361.0,0.001018]
[1727963463484,0.65346671,60362.0,60361.0,0.001018]
[1727963463984,0.53733371,60362.0,60361.0,0.001018]
[1727963464271,0.002,60361.0,60360.0,1e-06]
[1727963464526,0.002,60361.0,60352.0,0.25156943]
[1727963464527,0.288689,60354.0,60352.0,0.25156943]
[1727963464755,0.288689,60354.0,60334.0,0.000818]
[1727963464756,0.123,60353.0,60334.0,0.000818]
[1727963464976,1.36723176,60354.0,60334.0,0.000818]
[1727963464977,0.265722,60342.0,60334.0,0.000818]
[1727963465197,1.012722,60342.0,60334.0,0.000818]
[1727963465440,1.05913605,60342.0,60334.0,0.000818]
[1727963465666,1.22232276,60342.0,60334.0,0.000818]
[1727963465890,1.17590871,60342.0,60334.0,0.000818]
[1727963466341,0.26573,60339.0,60334.0,0.000818]
[1727963466610,0.77649493,60339.0,60334.0,0.000818]
[1727963466882,0.165738,60336.0,60334.0,0.000818]
[1727963467112,0.165738,60336.0,60321.0,0.0161355]
[1727963467113,0.002,60322.0,60321.0,0.0161355]
[1727963467336,0.002,60322.0,60316.0,0.0001]
[1727963467337,0.70913588,60319.0,60316.0,0.0001]
[1727963468022,0.16579,60317.0,60316.0,0.0001]
[1727963468225,0.26579,60317.0,60316.0,0.0001]
[1727963469237,0.51572543,60317.0,60316.0,0.0001]
[1727963469483,0.45897671,60317.0,60316.0,0.0001]
[1727963469694,0.50441734,60317.0,60316.0,0.0001]
[1727963469912,0.85441734,60317.0,60316.0,0.0001]
[1727963470354,0.81097671,60317.0,60316.0,0.0001]
[1727963470802,0.80397671,60317.0,60316.0,0.0001]
[1727963470989,0.80697671,60317.0,60316.0,0.0001]
[1727963471457,0.80397671,60317.0,60316.0,0.0001]
[1727963471715,0.81497671,60317.0,60316.0,0.0001]
[1727963471937,0.82897671,60317.0,60316.0,0.0001]
[1727963472828,0.80397671,60317.0,60316.0,0.0001]
[1727963473260,0.81697671,60317.0,60316.0,0.0001]
[1727963473705,0.46797276,60317.0,60316.0,0.0001]
[1727963474612,0.46897276,60317.0,60316.0,0.0001]
[1727963474824,0.48197276,60317.0,60316.0,0.0001]
[1727963475041,0.49097276,60317.0,60316.0,0.0001]
[1727963475265,0.47997276,60317.0,60316.0,0.0001]
[1727963475480,0.50497276,60317.0,60316.0,0.0001]
[1727963475768,0.165826,60304.0,60300.0,0.25075343]
[1727963476013,0.267856,60293.0,60292.0,0.24993543]
[1727963476235,0.70920688,60293.0,60292.0,0.24993543]
[1727963476459,0.165881,60284.0,60271.0,0.24993543]
[1727963476670,0.1824691,60284.0,60271.0,0.24993543]
[1727963476909,0.165886,60282.0,60272.0,0.331825]
[1727963477132,0.165886,60282.0,60276.0,0.165902]
[1727963477365,0.165886,60282.0,60276.0,0.165903]
[1727963477602,0.165886,60282.0,60272.0,0.331825]